fUSD/lending_fUSD_20260614
["ID","MTS","AMOUNT","RATE_DAILY","PERIOD"]
[425023140,1781435468000,-500.0,0.00028219,8]
[425023142,1781435468000,-500.0,0.00028219,8]
[425023141,1781435468000,-1736.16,0.00028219,8]
[425023143,1781435468000,-845.76,0.00028219,8]
[425023144,1781435468000,-1599.02,0.00028219,8]
[425023145,1781435468000,-1902.0,0.00028219,8]
[425023138,1781435468000,-500.0,0.00028219,8]
[425023146,1781435468000,-500.0,0.00028219,8]
[425023148,1781435468000,-500.0,0.00028219,8]
[425023149,1781435468000,-1662.26,0.00028219,8]
[425023218,1781435469000,-500.0,0.00028219,8]
[425023205,1781435469000,-992.53,0.00028219,8]
[425023213,1781435469000,-815.14,0.00028219,8]
[425023209,1781435469000,-1287.79,0.00028219,8]
[425023217,1781435469000,-544.77,0.00028219,8]
[425023207,1781435469000,-500.0,0.00028219,8]
[425023212,1781435469000,-655.79,0.00028219,8]
[425023208,1781435469000,-3257.38,0.00028219,8]
[425023214,1781435469000,-1310.78,0.00028219,8]
[425023215,1781435469000,-1754.68,0.00028219,8]
[425023211,1781435469000,-592.15,0.00028219,8]
[425023216,1781435469000,-1116.71,0.00028219,8]
[425023210,1781435469000,-2799.41,0.00028219,8]
[425023223,1781435469000,-500.0,0.00028219,8]
[425023221,1781435469000,-500.0,0.00028219,8]
[425023228,1781435469000,-500.0,0.00028219,8]
[425023225,1781435469000,-621.52,0.00028219,8]
[425023219,1781435469000,-569.25,0.00028219,8]
[425023229,1781435469000,-500.0,0.00028219,8]
[425023222,1781435469000,-527.3,0.00028219,8]
[425023227,1781435469000,-730.77,0.00028219,8]
[425023226,1781435469000,-500.0,0.00028219,8]
[425023224,1781435469000,-518.86,0.00028219,8]
[425023230,1781435469000,-924.83,0.00028219,8]
[425023231,1781435469000,-500.0,0.00028219,8]
[425023220,1781435469000,-824.3,0.00028219,8]
[425023204,1781435469000,-500.0,0.00028219,8]
[425023178,1781435469000,-500.0,0.00028219,8]
[425023202,1781435469000,-500.0,0.00028219,8]
[425023235,1781435469000,-850.13,0.00028219,8]
[425023182,1781435469000,-1058.56,0.00028219,8]
[425023179,1781435469000,-1201.05,0.00028219,8]
[425023181,1781435469000,-811.39,0.00028219,8]
[425023180,1781435469000,-595.66,0.00028219,8]
[425023183,1781435469000,-566.83,0.00028219,8]
[425023184,1781435469000,-500.0,0.00028219,8]
[425023185,1781435469000,-500.0,0.00028219,8]
[425023187,1781435469000,-500.0,0.00028219,8]
[425023189,1781435469000,-2165.46,0.00028219,8]
[425023186,1781435469000,-1131.84,0.00028219,8]
[425023195,1781435469000,-500.0,0.00028219,8]
[425023193,1781435469000,-500.0,0.00028219,8]
[425023194,1781435469000,-556.33,0.00028219,8]
[425023191,1781435469000,-552.82505616,0.00028219,8]
[425023188,1781435469000,-500.0,0.00028219,8]
[425023190,1781435469000,-500.0,0.00028219,8]
[425023192,1781435469000,-787.41,0.00028219,8]
[425023196,1781435469000,-1561.3,0.00028219,8]
[425023197,1781435469000,-643.87,0.00028219,8]
[425023200,1781435469000,-509.58,0.00028219,8]
[425023199,1781435469000,-1973.29,0.00028219,8]
[425023198,1781435469000,-1371.78,0.00028219,8]
[425023206,1781435469000,-500.0,0.00028219,8]
[425023201,1781435469000,-500.0,0.00028219,8]
[425023203,1781435469000,-500.0,0.00028219,8]
[425023237,1781435469000,-1004.12,0.00028219,8]
[425023258,1781435469000,-500.0,0.00028219,8]
[425023236,1781435469000,-500.0,0.00028219,8]
[425023267,1781435469000,-500.0,0.00028219,8]
[425023239,1781435469000,-500.0,0.00028219,8]
[425023268,1781435469000,-571.46,0.00028219,8]
[425023270,1781435469000,-500.0,0.00028219,8]
[425023269,1781435469000,-984.25,0.00028219,8]
[425023272,1781435469000,-2160.35,0.00028219,8]
[425023273,1781435469000,-500.0,0.00028219,8]
[425023271,1781435469000,-500.0,0.00028219,8]
[425023274,1781435469000,-1003.72,0.00028219,8]
[425023275,1781435469000,-500.0,0.00028219,8]
[425023277,1781435469000,-2361.19,0.00028219,8]
[425023285,1781435469000,-500.0,0.00028219,8]
[425023264,1781435469000,-1241.94,0.00028219,8]
[425023281,1781435469000,-2257.06,0.00028219,8]
[425023280,1781435469000,-612.61,0.00028219,8]
[425023283,1781435469000,-1503.8,0.00028219,8]
[425023279,1781435469000,-500.0,0.00028219,8]
[425023276,1781435469000,-500.0,0.00028219,8]
[425023286,1781435469000,-2554.65,0.00028219,8]
[425023278,1781435469000,-500.0,0.00028219,8]
[425023282,1781435469000,-528.83,0.00028219,8]
[425023288,1781435469000,-2256.66,0.00028219,8]
[425023287,1781435469000,-2098.88,0.00028219,8]
[425023290,1781435469000,-1758.65,0.00028219,8]
[425023289,1781435469000,-500.0,0.00028219,8]
[425023291,1781435469000,-4552.31,0.00028219,8]
[425023284,1781435469000,-2614.38,0.00028219,8]
[425023265,1781435469000,-7344.99,0.00028219,8]
[425023266,1781435469000,-504.09,0.00028219,8]
[425023263,1781435469000,-872.27,0.00028219,8]
[425023232,1781435469000,-1133.72,0.00028219,8]
[425023234,1781435469000,-674.46,0.00028219,8]
[425023233,1781435469000,-648.1,0.00028219,8]
[425023238,1781435469000,-500.0,0.00028219,8]
[425023240,1781435469000,-500.0,0.00028219,8]
[425023252,1781435469000,-1467.58,0.00028219,8]
[425023242,1781435469000,-774.42,0.00028219,8]
[425023245,1781435469000,-578.37,0.00028219,8]
[425023243,1781435469000,-1139.19,0.00028219,8]
[425023256,1781435469000,-500.0,0.00028219,8]
[425023241,1781435469000,-500.0,0.00028219,8]
[425023244,1781435469000,-1061.75,0.00028219,8]
[425023248,1781435469000,-500.0,0.00028219,8]
[425023246,1781435469000,-8085.8,0.00028219,8]
[425023249,1781435469000,-162.30633368,0.00028219,8]
[425023262,1781435469000,-500.0,0.00028219,8]
[425023247,1781435469000,-516.79,0.00028219,8]
[425023257,1781435469000,-500.0,0.00028219,8]
[425023259,1781435469000,-500.0,0.00028219,8]
[425023260,1781435469000,-575.72,0.00028219,8]
[425023261,1781435469000,-500.0,0.00028219,8]
[425023255,1781435469000,-929.75,0.00028219,8]
[425023253,1781435469000,-4916.71,0.00028219,8]
[425023250,1781435469000,-500.0,0.00028219,8]
[425023251,1781435469000,-500.0,0.00028219,8]
[425023254,1781435469000,-1815.68,0.00028219,8]
[425023299,1781435470000,-500.0,0.00028219,8]
[425023298,1781435470000,-500.0,0.00028219,8]
[425023296,1781435470000,-500.0,0.00028219,8]
[425023297,1781435470000,-500.0,0.00028219,8]
[425023293,1781435470000,-740.84,0.00028219,8]
[425023294,1781435470000,-2921.71,0.00028219,8]
[425023295,1781435470000,-622.72,0.00028219,8]
[425023292,1781435470000,-500.0,0.00028219,8]
[425023301,1781435470000,-500.0,0.00028219,8]
[425023300,1781435470000,-1839.7,0.00028219,8]
[425023309,1781435470000,-892.62,0.00028219,8]
[425023312,1781435470000,-720.84570248,0.00028219,8]
[425023307,1781435470000,-1091.59,0.00028219,8]
[425023302,1781435470000,-500.0,0.00028219,8]
[425023303,1781435470000,-500.0,0.00028219,8]
[425023306,1781435470000,-612.48,0.00028219,8]
[425023310,1781435470000,-1722.32,0.00028219,8]
[425023304,1781435470000,-19214.29,0.00028219,8]
[425023305,1781435470000,-500.0,0.00028219,8]
[425023311,1781435470000,-2255.23089237,0.00028219,8]
[425023308,1781435470000,-500.0,0.00028219,8]
[425023352,1781435471000,-500.0,0.00028219,8]
[425023343,1781435471000,-691.55,0.00028219,8]
[425023345,1781435471000,-892.97,0.00028219,8]
[425023348,1781435471000,-500.0,0.00028219,8]
[425023342,1781435471000,-1077.21,0.00028219,8]
[425023344,1781435471000,-500.0,0.00028219,8]
[425023347,1781435471000,-500.0,0.00028219,8]
[425023338,1781435471000,-500.0,0.00028219,8]
[425023363,1781435471000,-500.0,0.00028219,8]
[425023346,1781435471000,-1022.94,0.00028219,8]
[425023362,1781435471000,-907.8,0.00028219,8]
[425023357,1781435471000,-500.0,0.00028219,8]
[425023353,1781435471000,-1089.95,0.00028219,8]
[425023354,1781435471000,-500.0,0.00028219,8]
[425023358,1781435471000,-500.0,0.00028219,8]
[425023341,1781435471000,-500.0,0.00028219,8]
[425023360,1781435471000,-1416.97,0.00028219,8]
[425023359,1781435471000,-500.0,0.00028219,8]
[425023356,1781435471000,-703.26,0.00028219,8]
[425023355,1781435471000,-500.0,0.00028219,8]
[425023361,1781435471000,-500.0,0.00028219,8]
[425023364,1781435471000,-249.531361,0.00028219,8]
[425023369,1781435471000,-667.3,0.00028219,8]
[425023367,1781435471000,-500.0,0.00028219,8]
[425023351,1781435471000,-500.0,0.00028219,8]
[425023350,1781435471000,-500.0,0.00028219,8]
[425023336,1781435471000,-960.98,0.00028219,8]
[425023339,1781435471000,-3565.89,0.00028219,8]
[425023314,1781435471000,-1604.05046893,0.0002755,30]
[425023313,1781435471000,-517.04953107,0.0002755,30]
[425023315,1781435471000,-1447.38882788,0.0002755,30]
[425023317,1781435471000,-419.0,0.00021572,2]
[425023316,1781435471000,-503.0,0.00018,2]
[425023318,1781435471000,-2109.46117212,0.0002755,30]
[425023319,1781435471000,-800.0,0.0002767,10]
[425023320,1781435471000,-3556.85,0.00027711,7]
[425023324,1781435471000,-2155.6,0.00028219,8]
[425023322,1781435471000,-3556.85,0.00027872,2]
[425023321,1781435471000,-2121.1,0.00027711,7]
[425023325,1781435471000,-631.02,0.00028219,8]
[425023323,1781435471000,-379.88340515,0.00028219,8]
[425023327,1781435471000,-2696.04,0.00028219,8]
[425023326,1781435471000,-1797.01,0.00028219,8]
[425023337,1781435471000,-500.0,0.00028219,8]
[425023328,1781435471000,-1317.99,0.00028219,8]
[425023332,1781435471000,-500.0,0.00028219,8]
[425023333,1781435471000,-500.0,0.00028219,8]
[425023334,1781435471000,-1508.58,0.00028219,8]
[425023329,1781435471000,-884.1,0.00028219,8]
[425023330,1781435471000,-4777.45,0.00028219,8]
[425023371,1781435471000,-500.0,0.00028219,8]
[425023335,1781435471000,-500.0,0.00028219,8]
[425023331,1781435471000,-868.68,0.00028219,8]
[425023349,1781435471000,-565.76,0.00028219,8]
[425023370,1781435471000,-4683.5,0.00028219,8]
[425023340,1781435471000,-500.0,0.00028219,8]
[425023372,1781435471000,-500.0,0.00028219,8]
[425023400,1781435471000,-500.0,0.00028219,8]
[425023411,1781435471000,-500.0,0.00028219,8]
[425023403,1781435471000,-637.78,0.00028219,8]
[425023402,1781435471000,-1152.52,0.00028219,8]
[425023404,1781435471000,-572.46,0.00028219,8]
[425023407,1781435471000,-4620.02,0.00028219,8]
[425023410,1781435471000,-500.0,0.00028219,8]
[425023406,1781435471000,-638.97,0.00028219,8]
[425023409,1781435471000,-500.0,0.00028219,8]
[425023405,1781435471000,-690.07,0.00028219,8]
[425023408,1781435471000,-1028.97,0.00028219,8]
[425023414,1781435471000,-500.0,0.00028219,8]
[425023412,1781435471000,-1818.3,0.00028219,2]
[425023416,1781435471000,-500.0,0.00028219,8]
[425023423,1781435471000,-1003.32,0.00028219,8]
[425023421,1781435471000,-500.0,0.00028219,8]
[425023415,1781435471000,-1978.69,0.00028219,8]
[425023418,1781435471000,-1434.49,0.00028219,8]
[425023417,1781435471000,-500.0,0.00028219,8]
[425023419,1781435471000,-500.0,0.00028219,8]
[425023422,1781435471000,-500.0,0.00028219,8]
[425023420,1781435471000,-500.0,0.00028219,8]
[425023425,1781435471000,-3187.96,0.00028219,8]
[425023424,1781435471000,-1161.38,0.00028219,8]
[425023365,1781435471000,-1029.1,0.00028219,8]
[425023401,1781435471000,-500.0,0.00028219,8]
[425023395,1781435471000,-500.0,0.00028219,8]
[425023413,1781435471000,-500.0,0.00028219,8]
[425023398,1781435471000,-2172.3,0.00028219,8]
[425023366,1781435471000,-866.43,0.00028219,8]
[425023397,1781435471000,-1287.86,0.00028219,8]
[425023373,1781435471000,-500.0,0.00028219,8]
[425023368,1781435471000,-2462.41,0.00028219,8]
[425023374,1781435471000,-1138.72,0.00028219,8]
[425023375,1781435471000,-883.05,0.00028219,8]
[425023376,1781435471000,-500.0,0.00028219,8]
[425023377,1781435471000,-853.29,0.00028219,8]
[425023386,1781435471000,-500.0,0.00028219,8]
[425023383,1781435471000,-880.56,0.00028219,8]
[425023385,1781435471000,-500.0,0.00028219,2]
[425023384,1781435471000,-673.61,0.00028219,8]
[425023387,1781435471000,-1663.65,0.00028219,8]
[425023378,1781435471000,-796.66,0.00028219,8]
[425023390,1781435471000,-500.0,0.00028219,8]
[425023396,1781435471000,-1339.46,0.00028219,8]
[425023380,1781435471000,-1905.43,0.00028219,8]
[425023399,1781435471000,-500.0,0.00028219,8]
[425023394,1781435471000,-500.0,0.00028219,2]
[425023393,1781435471000,-500.0,0.00028219,8]
[425023392,1781435471000,-1070.85,0.00028219,8]
[425023391,1781435471000,-500.0,0.00028219,8]
[425023388,1781435471000,-560.93,0.00028219,8]
[425023382,1781435471000,-500.0,0.00028219,8]
[425023381,1781435471000,-500.0,0.00028219,8]
[425023379,1781435471000,-500.0,0.00028219,8]
[425023389,1781435471000,-500.0,0.00028219,8]
[425023464,1781435472000,-695.05,0.00028219,8]
[425023468,1781435472000,-743.15,0.00028219,8]
[425023465,1781435472000,-1310.37,0.00028219,8]
[425023460,1781435472000,-500.0,0.00028219,8]
[425023463,1781435472000,-500.0,0.00028219,8]
[425023469,1781435472000,-500.0,0.00028219,8]
[425023470,1781435472000,-500.0,0.00028219,8]
[425023461,1781435472000,-2027.83,0.00028219,8]
[425023459,1781435472000,-274.2417994,0.00028219,8]
[425023458,1781435472000,-1553.49,0.00028219,8]
[425023467,1781435472000,-500.0,0.00028219,8]
[425023462,1781435472000,-500.0,0.00028219,8]
[425023466,1781435472000,-1045.55,0.00028219,8]
[425023477,1781435472000,-500.0,0.00028219,8]
[425023474,1781435472000,-1250.29,0.00028219,8]
[425023473,1781435472000,-500.0,0.00028219,8]
[425023481,1781435472000,-500.0,0.00028219,8]
[425023472,1781435472000,-500.0,0.00028219,8]
[425023483,1781435472000,-5405.22,0.00028219,8]
[425023475,1781435472000,-585.03,0.00028219,8]
[425023476,1781435472000,-1209.78,0.00028219,8]
[425023484,1781435472000,-500.0,0.00028219,8]
[425023479,1781435472000,-500.0,0.00028219,8]
[425023482,1781435472000,-2496.95,0.00028219,8]
[425023478,1781435472000,-500.0,0.00028219,8]
[425023449,1781435472000,-1643.27,0.00028219,8]
[425023471,1781435472000,-485.21551704,0.00028219,8]
[425023456,1781435472000,-854.75,0.00028219,8]
[425023429,1781435472000,-1881.88,0.00028219,8]
[425023455,1781435472000,-595.59,0.00028219,8]
[425023427,1781435472000,-500.0,0.00028219,8]
[425023428,1781435472000,-500.0,0.00028219,8]
[425023430,1781435472000,-511.17,0.00028219,8]
[425023426,1781435472000,-2542.25,0.00028219,8]
[425023431,1781435472000,-1866.12,0.00028219,8]
[425023432,1781435472000,-770.01,0.00028219,8]
[425023433,1781435472000,-500.0,0.00028219,8]
[425023435,1781435472000,-1071.25,0.00028219,8]
[425023445,1781435472000,-500.0,0.00028219,8]
[425023434,1781435472000,-719.38,0.00028219,8]
[425023436,1781435472000,-500.0,0.00028219,8]
[425023437,1781435472000,-500.0,0.00028219,8]
[425023440,1781435472000,-1076.43,0.00028219,8]
[425023442,1781435472000,-500.0,0.00028219,8]
[425023444,1781435472000,-992.72,0.00028219,8]
[425023443,1781435472000,-695.51,0.00028219,8]
[425023438,1781435472000,-1163.17,0.00028219,8]
[425023439,1781435472000,-500.0,0.00028219,8]
[425023441,1781435472000,-500.0,0.00028219,8]
[425023447,1781435472000,-574.62,0.00028219,8]
[425023457,1781435472000,-877.33,0.00028219,8]
[425023446,1781435472000,-502.17,0.00028219,8]
[425023452,1781435472000,-541.36,0.00028219,8]
[425023450,1781435472000,-706.89,0.00028219,8]
[425023451,1781435472000,-500.0,0.00028219,8]
[425023448,1781435472000,-712.69,0.00028219,8]
[425023454,1781435472000,-3097.47,0.00028219,8]
[425023453,1781435472000,-500.2,0.00028219,8]
[425023480,1781435472000,-2093.51,0.00028219,8]
[425023498,1781435472000,-500.0,0.00028219,8]
[425023485,1781435472000,-1338.92,0.00028219,8]
[425023516,1781435472000,-500.0,0.00028219,8]
[425023521,1781435472000,-1150.74,0.00028219,8]
[425023520,1781435472000,-500.0,0.00028219,8]
[425023522,1781435472000,-2149.5,0.00028219,8]
[425023531,1781435472000,-4432.91,0.00028219,8]
[425023525,1781435472000,-2801.1,0.00028219,8]
[425023524,1781435472000,-926.31,0.00028219,8]
[425023523,1781435472000,-1525.12,0.00028219,8]
[425023532,1781435472000,-500.0,0.00028219,8]
[425023529,1781435472000,-500.0,0.00028219,8]
[425023526,1781435472000,-561.28,0.00028219,8]
[425023527,1781435472000,-1568.61,0.00028219,8]
[425023528,1781435472000,-1131.02,0.00028219,8]
[425023530,1781435472000,-2519.65,0.00028219,8]
[425023542,1781435472000,-1477.01,0.00028219,8]
[425023533,1781435472000,-781.1,0.00028219,8]
[425023543,1781435472000,-500.0,0.00028219,8]
[425023544,1781435472000,-608.87,0.00028219,8]
[425023534,1781435472000,-500.0,0.00028219,8]
[425023535,1781435472000,-500.0,0.00028219,8]
[425023537,1781435472000,-702.57,0.00028219,8]
[425023536,1781435472000,-521.6266834,0.00028219,8]
[425023541,1781435472000,-837.03,0.00028219,8]
[425023540,1781435472000,-1615.08,0.00028219,8]
[425023538,1781435472000,-541.05,0.00028219,8]
[425023545,1781435472000,-500.0,0.00028219,8]
[425023486,1781435472000,-15553.71,0.00028219,8]
[425023515,1781435472000,-500.0,0.00028219,8]
[425023513,1781435472000,-500.0,0.00028219,8]
[425023539,1781435472000,-558.23,0.00028219,8]
[425023514,1781435472000,-1973.87,0.00028219,8]
[425023517,1781435472000,-454.67420434,0.00028219,8]
[425023487,1781435472000,-500.0,0.00028219,8]
[425023489,1781435472000,-232.43031446,0.00028219,8]
[425023490,1781435472000,-500.0,0.00028219,8]
[425023493,1781435472000,-2011.8,0.00028219,8]
[425023491,1781435472000,-954.15,0.00028219,8]
[425023492,1781435472000,-500.0,0.00028219,8]
[425023494,1781435472000,-500.13,0.00028219,8]
[425023495,1781435472000,-500.0,0.00028219,8]
[425023496,1781435472000,-500.0,0.00028219,8]
[425023499,1781435472000,-500.0,0.00028219,8]
[425023501,1781435472000,-500.0,0.00028219,8]
[425023500,1781435472000,-500.0,0.00028219,8]
[425023488,1781435472000,-2075.95,0.00028219,8]
[425023507,1781435472000,-1020.63,0.00028219,8]
[425023505,1781435472000,-1220.53,0.00028219,8]
[425023511,1781435472000,-500.0,0.00028219,8]
[425023512,1781435472000,-1412.97,0.00028219,8]
[425023508,1781435472000,-4250.44,0.00028219,8]
[425023518,1781435472000,-973.6,0.00028219,8]
[425023519,1781435472000,-500.0,0.00028219,8]
[425023504,1781435472000,-687.87,0.00028219,8]
[425023506,1781435472000,-5753.69,0.00028219,8]
[425023503,1781435472000,-2098.27,0.00028219,8]
[425023502,1781435472000,-500.0,0.00028219,8]
[425023497,1781435472000,-500.0,0.00028219,8]
[425023509,1781435472000,-500.0,0.00028219,8]
[425023510,1781435472000,-757.3,0.00028219,8]
[425023584,1781435473000,-963.02,0.00028219,8]
[425023585,1781435473000,-1192.0,0.00028219,8]
[425023582,1781435473000,-648.84,0.00028219,8]
[425023583,1781435473000,-500.0,0.00028219,8]
[425023577,1781435473000,-1442.04,0.00028219,8]
[425023591,1781435473000,-1755.46,0.00028219,8]
[425023580,1781435473000,-604.1,0.00028219,8]
[425023576,1781435473000,-500.0,0.00028219,8]
[425023573,1781435473000,-1295.96,0.00028219,8]
[425023572,1781435473000,-1354.7,0.00028219,8]
[425023581,1781435473000,-501.45,0.00028219,8]
[425023586,1781435473000,-500.0,0.00028219,8]
[425023594,1781435473000,-500.0,0.00028219,8]
[425023590,1781435473000,-500.0,0.00028219,8]
[425023587,1781435473000,-589.39,0.00028219,8]
[425023588,1781435473000,-1653.09,0.00028219,8]
[425023592,1781435473000,-500.0,0.00028219,8]
[425023601,1781435473000,-970.25,0.00028219,8]
[425023602,1781435473000,-500.0,0.00028219,2]
[425023599,1781435473000,-500.0,0.00028219,8]
[425023595,1781435473000,-500.0,0.00028219,8]
[425023597,1781435473000,-1960.39,0.00028219,8]
[425023600,1781435473000,-500.0,0.00028219,8]
[425023578,1781435473000,-500.0,0.00028219,8]
[425023593,1781435473000,-1848.1,0.00028219,8]
[425023589,1781435473000,-745.59,0.00028219,8]
[425023579,1781435473000,-1242.61,0.00028219,8]
[425023560,1781435473000,-500.0,0.00028219,8]
[425023574,1781435473000,-500.0,0.00028219,8]
[425023596,1781435473000,-8632.18,0.00028219,8]
[425023546,1781435473000,-3102.37,0.00028219,8]
[425023548,1781435473000,-547.62,0.00028219,8]
[425023547,1781435473000,-889.97,0.00028219,8]
[425023555,1781435473000,-500.0,0.00028219,8]
[425023550,1781435473000,-883.55,0.00028219,8]
[425023554,1781435473000,-1270.21,0.00028219,8]
[425023551,1781435473000,-955.0,0.00028219,8]
[425023556,1781435473000,-2375.22,0.00028219,8]
[425023549,1781435473000,-500.0,0.00028219,8]
[425023552,1781435473000,-510.37,0.00028219,8]
[425023558,1781435473000,-809.36,0.00028219,8]
[425023568,1781435473000,-500.0,0.00028219,8]
[425023557,1781435473000,-500.0,0.00028219,8]
[425023561,1781435473000,-2352.69,0.00028219,8]
[425023565,1781435473000,-500.0,0.00028219,8]
[425023559,1781435473000,-775.96,0.00028219,8]
[425023563,1781435473000,-500.0,0.00028219,8]
[425023562,1781435473000,-500.0,0.00028219,8]
[425023564,1781435473000,-3220.54,0.00028219,8]
[425023566,1781435473000,-1007.92,0.00028219,8]
[425023567,1781435473000,-500.0,0.00028219,8]
[425023569,1781435473000,-1615.64,0.00028219,8]
[425023570,1781435473000,-500.0,0.00028219,8]
[425023571,1781435473000,-500.0,0.00028219,8]
[425023575,1781435473000,-544.28,0.00028219,8]
[425023598,1781435473000,-500.0,0.00028219,8]
[425023553,1781435473000,-500.0,0.00028219,8]
[425023603,1781435473000,-572.13744203,0.00028219,8]
[425023634,1781435473000,-1226.97,0.00028219,8]
[425023636,1781435473000,-814.65,0.00028219,8]
[425023645,1781435473000,-2892.7,0.00028219,8]
[425023637,1781435473000,-500.0,0.00028219,8]
[425023639,1781435473000,-500.0,0.00028219,8]
[425023641,1781435473000,-716.44,0.00028219,8]
[425023643,1781435473000,-500.0,0.00028219,8]
[425023642,1781435473000,-579.74728454,0.00028219,8]
[425023647,1781435473000,-1595.47,0.00028219,8]
[425023638,1781435473000,-843.81,0.00028219,8]
[425023640,1781435473000,-1745.08,0.00028219,8]
[425023646,1781435473000,-508.83,0.00028219,8]
[425023633,1781435473000,-500.0,0.00028219,8]
[425023649,1781435473000,-500.0,0.00028219,8]
[425023651,1781435473000,-8613.63,0.00028219,8]
[425023648,1781435473000,-500.0,0.00028219,8]
[425023653,1781435473000,-500.0,0.00028219,8]
[425023652,1781435473000,-500.0,0.00028219,8]
[425023658,1781435473000,-801.47,0.00028219,8]
[425023650,1781435473000,-2198.4,0.00028219,8]
[425023654,1781435473000,-886.74,0.00028219,8]
[425023656,1781435473000,-500.0,0.00028219,8]
[425023657,1781435473000,-500.0,0.00028219,8]
[425023655,1781435473000,-510.76,0.00028219,8]
[425023660,1781435473000,-549.5,0.00028219,8]
[425023612,1781435473000,-500.0,0.00028219,8]
[425023659,1781435473000,-500.0,0.00028219,8]
[425023635,1781435473000,-1475.92,0.00028219,8]
[425023644,1781435473000,-500.0,0.00028219,8]
[425023629,1781435473000,-500.0,0.00028219,8]
[425023607,1781435473000,-2716.9,0.00028219,8]
[425023632,1781435473000,-500.0,0.00028219,8]
[425023611,1781435473000,-642.76,0.00028219,8]
[425023605,1781435473000,-500.0,0.00028219,8]
[425023608,1781435473000,-500.0,0.00028219,8]
[425023613,1781435473000,-500.0,0.00028219,8]
[425023606,1781435473000,-1325.24,0.00028219,8]
[425023604,1781435473000,-2347.19,0.00028219,8]
[425023610,1781435473000,-806.44,0.00028219,8]
[425023620,1781435473000,-500.0,0.00028219,8]
[425023614,1781435473000,-548.55,0.00028219,8]
[425023616,1781435473000,-500.0,0.00028219,8]
[425023618,1781435473000,-6868.92,0.00028219,8]
[425023609,1781435473000,-1963.38,0.00028219,8]
[425023621,1781435473000,-2040.85,0.00028219,8]
[425023630,1781435473000,-465.05474208,0.00028219,8]
[425023617,1781435473000,-954.76,0.00028219,8]
[425023628,1781435473000,-500.0,0.00028219,8]
[425023627,1781435473000,-500.0,0.00028219,8]
[425023625,1781435473000,-1253.4,0.00028219,8]
[425023626,1781435473000,-500.0,0.00028219,8]
[425023631,1781435473000,-500.0,0.00028219,8]
[425023622,1781435473000,-500.0,0.00028219,8]
[425023623,1781435473000,-2791.61,0.00028219,8]
[425023615,1781435473000,-908.38,0.00028219,8]
[425023619,1781435473000,-500.0,0.00028219,8]
[425023624,1781435473000,-1521.7,0.00028219,8]
[425023702,1781435474000,-505.32,0.00028219,8]
[425023700,1781435474000,-1873.07,0.00028219,8]
[425023701,1781435474000,-784.59,0.00028219,8]
[425023698,1781435474000,-500.0,0.00028219,8]
[425023699,1781435474000,-909.03,0.00028219,8]
[425023693,1781435474000,-1112.89,0.00028219,8]
[425023695,1781435474000,-1887.39,0.00028219,8]